bitfinex-derivatives/quotes_SOLF0:USTF0_20251024
["timestamp","ask_amount","ask_price","bid_price","bid_amount"]
[1761294413445,2.86,192.32,192.25,6.20034902]
[1761294415743,2.86,192.32,192.27,1.51984902]
[1761294418942,2.86,192.32,192.27,6.19994902]
[1761294419445,2.86,192.32,192.27,1.51984902]
[1761294419641,2.86,192.32,192.29,1.51984902]
[1761294420745,2.86,192.32,192.28,4.6799]
[1761294421248,2.86,192.32,192.29,1.51984902]
[1761294423549,8.86395748,192.35,192.29,1.51984902]
[1761294423550,7.3984,192.35,192.29,1.51984902]
[1761294423744,4.6784,192.35,192.29,1.51984902]
[1761294423937,2.72,192.34,192.29,1.51984902]
[1761294424344,2.72,192.34,192.31,1.51984902]
[1761294424539,2.72,192.37,192.33,1.51984902]
[1761294424743,2.72,192.35,192.33,1.51984902]
[1761294428750,2.72,192.35,192.32,7.0560696]
[1761294431047,2.72,192.39,192.32,2.3771696]
[1761294431255,2.72,192.37,192.36,2.3771696]
[1761294438958,4.844517,192.43,192.36,2.3771696]
[1761294439164,6.90446745,192.42,192.36,2.3771696]
[1761294439360,2.72,192.4,192.36,2.3771696]
[1761294439562,4.18446745,192.39,192.36,2.3771696]
[1761294439765,2.72,192.4,192.36,2.3771696]
[1761294440063,6.90518606,192.39,192.37,4.6777]
[1761294440263,2.72,192.39,192.37,4.6777]
[1761294442661,2.72,192.43,192.38,4.6775]
[1761294442961,2.72,192.41,192.38,4.6775]
[1761294443167,6.90732096,192.4,192.38,4.6775]
[1761294443365,2.72,192.4,192.38,4.6775]
[1761294445169,2.72,192.43,192.38,4.6775]
[1761294445474,2.72,192.41,192.38,4.6775]
[1761294445770,2.72,192.39,192.38,4.6775]
[1761294446870,2.72,192.39,192.36,4.678]
[1761294447170,2.72,192.39,192.35,2.3771696]
[1761294447366,2.72,192.39,192.35,7.0553696]
[1761294447769,2.72,192.37,192.35,4.6782]
[1761294463290,4.27595434,192.36,192.35,4.6782]
[1761294463488,7.04595434,192.36,192.35,4.6782]
[1761294465692,2.77,192.36,192.35,4.6782]
[1761294468295,7.05022432,192.36,192.35,4.6782]
[1761294468592,2.77,192.39,192.35,4.6782]
[1761294468783,2.77,192.37,192.35,4.6782]
[1761294469394,7.05154141,192.36,192.35,4.6782]
[1761294469891,2.77,192.35,192.34,42.9]
[1761294470095,7.05126599,192.35,192.34,42.9]
[1761294470996,2.77,192.34,192.27,2.3771696]
[1761294471293,2.77,192.32,192.28,42.9]
[1761294471988,2.77,192.32,192.29,4.6797]
[1761294475297,2.77,192.32,192.28,104.9]
[1761294475797,2.77,192.32,192.28,42.9]
[1761294477096,2.77,192.32,192.28,47.5799]
[1761294480501,2.77,192.32,192.29,4.6797]
[1761294480703,2.85,192.35,192.28,42.9]
[1761294480893,4.27920308,192.34,192.28,42.9]
[1761294481095,4.27920308,192.33,192.28,42.9]
[1761294481398,4.27920308,192.32,192.28,42.9]
[1761294481597,2.85,192.33,192.28,42.9]
[1761294481798,4.27870345,192.32,192.28,42.9]
[1761294481999,2.85,192.33,192.3,4.6795]
[1761294482200,4.27870792,192.32,192.3,4.6795]
[1761294482401,2.85,192.32,192.3,4.6795]
[1761294482602,2.85,192.32,192.28,42.9]
[1761294482798,4.27796988,192.31,192.28,42.9]
[1761294482998,2.85,192.3,192.28,42.9]
[1761294487200,2.85,192.34,192.28,42.9]
[1761294487397,4.30717393,192.33,192.28,47.5799]
[1761294487596,4.30717393,192.32,192.28,47.5799]
[1761294487896,2.85,192.34,192.28,47.5799]
[1761294488102,2.85,192.32,192.28,47.5799]
[1761294490011,7.694517,192.39,192.3,2.3771696]
[1761294490195,4.30777019,192.38,192.31,42.94]
[1761294490400,4.30777019,192.37,192.33,4.6786]
[1761294490600,7.15777019,192.36,192.33,4.6786]
[1761294490807,4.30777019,192.35,192.33,4.6786]
[1761294491009,2.85,192.36,192.33,4.6786]
[1761294491209,7.15817804,192.35,192.33,4.6786]
[1761294491412,2.85,192.35,192.32,1.52147203]
[1761294491909,2.85,192.38,192.32,1.52147203]
[1761294492109,4.30845678,192.37,192.32,1.52147203]
[1761294492312,4.30845678,192.36,192.32,1.52147203]
[1761294492503,4.30845678,192.35,192.32,1.52147203]
[1761294492705,2.85,192.38,192.32,1.52147203]
[1761294492909,4.30859791,192.37,192.32,1.52147203]
[1761294493110,4.30859791,192.36,192.33,4.6787]
[1761294493305,4.30859791,192.35,192.33,4.6787]
[1761294493505,2.85,192.38,192.34,42.96]
[1761294493810,2.85,192.41,192.36,1.52147203]
[1761294494002,2.85,192.41,192.34,42.96]
[1761294494003,2.85,192.39,192.38,1.52147203]
[1761294495012,2.85,192.42,192.38,1.52147203]
[1761294495215,2.85,192.4,192.38,1.52147203]
[1761294495512,2.85,192.43,192.38,1.52147203]
[1761294495811,2.85,192.41,192.4,1.52147203]
[1761294496014,7.04085056,192.41,192.4,1.52147203]
[1761294499113,4.19085056,192.41,192.4,1.52147203]
[1761294499614,4.844517,192.46,192.4,1.52147203]
[1761294499813,2.85,192.45,192.43,1.52147203]
[1761294504624,2.85,192.46,192.43,1.52147203]
[1761294504930,2.85,192.46,192.45,1.52147203]
[1761294507530,2.85,192.46,192.43,1.52147203]
[1761294509032,2.85,192.46,192.4,4.677]
[1761294509219,2.85,192.46,192.43,1.52147203]
[1761294515929,6.36598903,192.52,192.36,42.96]
[1761294515930,2.83,192.51,192.45,1.52147203]
[1761294516130,2.83,192.49,192.48,1.52147203]
[1761294516931,8.80938377,192.53,192.48,1.52147203]
[1761294517127,4.13528377,192.52,192.5,1.52147203]
[1761294517327,7.5041,192.53,192.5,1.52147203]
[1761294517522,2.83,192.53,192.5,1.52147203]
[1761294522136,2.83,192.53,192.46,4.6756]
[1761294522338,2.83,192.53,192.48,1.52147203]
[1761294522537,2.83,192.53,192.5,1.52147203]
[1761294522741,2.83,192.56,192.5,1.52147203]
[1761294524041,2.83,192.55,192.5,1.52147203]
[1761294534540,2.83,192.55,192.52,1.52147203]
[1761294535048,7.5028,192.58,192.52,1.52147203]
[1761294535248,2.83,192.56,192.52,1.52147203]
[1761294535448,4.13247271,192.55,192.52,1.52147203]
[1761294535744,2.83,192.56,192.52,1.52147203]
[1761294535944,4.0886345,192.55,192.52,1.52147203]
[1761294536158,2.83,192.55,192.52,1.52147203]
[1761294537452,2.83,192.55,192.54,1.52147203]
[1761294539548,2.83,192.55,192.51,4.6743]
[1761294539748,2.83,192.55,192.53,1.52147203]
[1761294541853,2.88,192.57,192.53,1.52147203]
[1761294542354,2.88,192.57,192.52,1.52147203]
[1761294543055,4.09273298,192.56,192.52,1.52147203]
[1761294543355,2.88,192.56,192.52,1.52147203]
[1761294549352,4.06819849,192.55,192.49,1.52147203]
[1761294549547,2.88,192.54,192.49,1.52147203]
[1761294549748,2.88,192.54,192.47,4.6752]
[1761294549950,2.88,192.54,192.49,1.52147203]
[1761294550658,2.88,192.54,192.47,4.6752]
[1761294550954,2.88,192.54,192.47,7.04837544]
[1761294554457,2.88,192.54,192.48,4.675]
[1761294554763,2.88,192.54,192.5,2.37317544]
[1761294556054,2.88,192.54,192.5,7.04767544]
[1761294558261,2.88,192.57,192.5,2.37317544]
[1761294558455,4.10341622,192.56,192.5,2.37317544]
[1761294558656,6.98341622,192.55,192.5,2.37317544]
[1761294558856,4.10341622,192.54,192.5,2.37317544]
[1761294559057,2.88,192.55,192.52,4.674]
[1761294559264,2.88,192.53,192.5,2.37317544]
[1761294559959,2.88,192.53,192.5,7.04747544]
[1761294563166,4.1107938,192.52,192.5,7.04747544]
[1761294563464,2.88,192.53,192.5,7.04747544]
[1761294563663,4.1107938,192.52,192.5,7.04747544]
[1761294563861,2.88,192.53,192.5,7.04747544]
[1761294564062,4.1107938,192.52,192.5,7.04747544]
[1761294564266,2.88,192.53,192.5,7.04747544]
[1761294564465,4.11110343,192.52,192.5,7.04747544]
[1761294564656,2.88,192.53,192.5,7.04747544]
[1761294564858,4.11110343,192.52,192.5,7.04747544]
[1761294565061,2.88,192.53,192.5,7.04747544]
[1761294565257,4.11129937,192.52,192.5,7.04747544]
[1761294565459,2.88,192.53,192.5,7.04747544]
[1761294565659,4.11129937,192.52,192.5,7.04747544]
[1761294565960,2.88,192.53,192.5,49.92747544]
[1761294566166,4.11129937,192.52,192.5,49.92747544]
[1761294566361,2.88,192.53,192.5,49.92747544]
[1761294566562,4.11151892,192.52,192.5,49.92747544]
[1761294566763,2.88,192.53,192.5,49.92747544]
[1761294566963,4.11151892,192.52,192.5,49.92747544]
[1761294567164,2.88,192.53,192.5,49.92747544]
[1761294567366,4.11176583,192.52,192.5,49.92747544]
[1761294567665,2.88,192.53,192.5,49.92747544]
[1761294567859,4.11176583,192.52,192.5,49.92747544]
[1761294568060,2.88,192.53,192.5,49.92747544]
[1761294568758,4.07390133,192.52,192.5,49.92747544]
[1761294568959,2.65,192.51,192.5,49.92747544]
[1761294569655,2.65,192.51,192.45,64.37317544]
[1761294569656,2.72,192.5,192.45,64.37317544]
[1761294569861,2.72,192.5,192.48,42.86]
[1761294572465,4.1494523,192.49,192.48,42.86]
[1761294572665,6.8694523,192.49,192.48,42.86]
[1761294574667,2.72,192.48,192.45,45.25317544]
[1761294575064,4.16173775,192.47,192.45,45.25317544]
[1761294575265,2.72,192.5,192.45,45.25317544]
[1761294575470,2.72,192.48,192.45,45.25317544]
[1761294576168,2.72,192.48,192.45,42.88]
[1761294576760,2.72,192.46,192.32,15.6]
[1761294576960,4.16019726,192.45,192.38,2.37317544]
[1761294577162,2.72,192.46,192.39,42.9]
[1761294577469,6.87765235,192.45,192.39,47.5771]
[1761294577671,6.87765235,192.44,192.4,62.0]
[1761294577872,2.72,192.43,192.4,62.0]
[1761294578973,2.72,192.43,192.39,42.9]
[1761294581574,2.72,192.43,192.38,2.37317544]
[1761294582173,2.72,192.43,192.38,64.37317544]
[1761294582570,2.72,192.43,192.35,2.37317544]
[1761294582776,2.72,192.41,192.35,2.37317544]
[1761294583075,2.72,192.39,192.35,2.37317544]
[1761294585076,2.72,192.42,192.35,2.37317544]
[1761294585474,2.72,192.42,192.35,64.37317544]
[1761294592280,2.72,192.41,192.35,64.37317544]
[1761294599483,2.7,192.4,192.35,64.37317544]
[1761294600573,2.37317544,192.47,192.22,0.90507152]
[1761294600574,2.7,192.46,192.22,0.90507152]
[1761294600882,2.7,192.43,192.31,2.37317544]
[1761294601077,4.12997398,192.42,192.31,2.37317544]
[1761294601283,2.7,192.4,192.31,2.37317544]
[1761294601585,2.7,192.38,192.31,2.37317544]
[1761294602483,2.7,192.38,192.25,0.90476562]
[1761294602781,2.7,192.38,192.31,2.37317544]
[1761294602988,2.7,192.35,192.25,0.90476562]
[1761294603285,2.7,192.35,192.26,2.37317544]
[1761294603472,6.34771801,192.44,192.25,0.90476562]
[1761294603473,4.82210495,192.45,192.32,2.37317544]
[1761294603678,2.7,192.42,192.35,2.37317544]
[1761294604078,7.52210495,192.48,192.38,2.37317544]
[1761294604284,2.7,192.51,192.47,2.37317544]
[1761294605580,2.7,192.51,192.24,12.94372734]
[1761294605581,2.7,192.49,192.42,2.37317544]
[1761294605785,2.7,192.47,192.42,2.37317544]
[1761294607084,2.7,192.46,192.42,2.37317544]
[1761294609087,2.7,192.46,192.41,2.37317544]
[1761294609390,9.3456,192.58,192.38,2.37317544]
[1761294609391,2.7,192.45,192.38,2.37317544]
[1761294609589,2.7,192.43,192.38,2.37317544]
[1761294610093,2.7,192.42,192.38,2.37317544]
[1761294612383,2.7,192.41,192.33,4.6788]
[1761294612582,2.7,192.41,192.37,2.37317544]
[1761294612790,2.7,192.41,192.39,1.52071852]
[1761294613187,2.7,192.41,192.31,66.6792]
[1761294613378,2.7,192.41,192.38,1.52071852]
[1761294618194,2.7,192.41,192.31,66.6792]
[1761294618394,4.6768,192.42,192.39,1.52071852]
[1761294618395,6.85355375,192.4,192.39,1.52071852]
[1761294622592,2.7,192.39,192.38,1.52071852]
[1761294622892,2.7,192.38,192.36,1.52071852]
[1761294623093,4.16004199,192.37,192.36,1.52071852]
[1761294623294,6.86004199,192.37,192.34,1.52071852]
[1761294623596,2.7,192.37,192.34,1.52071852]
[1761294624293,2.7,192.37,192.25,75.33748374]
[1761294624294,4.16046975,192.36,192.28,4.6799]
[1761294624486,2.7,192.39,192.33,1.52071852]
[1761294624690,2.7,192.37,192.33,1.52071852]
[1761294624890,2.7,192.35,192.33,1.52071852]
[1761294625596,2.7,192.35,192.31,1.52071852]
[1761294625996,4.16075121,192.34,192.31,1.52071852]
[1761294626197,2.7,192.33,192.31,1.52071852]
[1761294626896,2.7,192.33,192.26,4.6804]
[1761294627097,2.7,192.33,192.3,1.52071852]
[1761294628406,2.7,192.33,192.27,62.0]
[1761294628590,2.7,192.33,192.28,1.52071852]
[1761294628996,2.7,192.33,192.3,1.52071852]
[1761294629199,7.5082,192.36,192.3,1.52071852]
[1761294629400,6.98834395,192.35,192.3,1.52071852]
[1761294629601,4.15834395,192.34,192.3,1.52071852]
[1761294629803,2.83,192.35,192.3,1.52071852]
[1761294630099,4.15834211,192.34,192.3,1.52071852]
[1761294630301,2.83,192.35,192.3,1.52071852]
[1761294631196,2.83,192.35,192.27,66.6801]
[1761294631495,2.83,192.38,192.33,1.52071852]
[1761294631690,4.15673085,192.37,192.35,1.52071852]
[1761294631901,2.83,192.4,192.35,1.52071852]
[1761294632097,6.98617255,192.39,192.34,1.52071852]
[1761294632301,2.83,192.37,192.34,1.52071852]
[1761294634802,2.83,192.41,192.36,1.52071852]
[1761294635005,4.82210495,192.46,192.4,1.52071852]
[1761294635305,4.17331748,192.45,192.42,1.52071852]
[1761294635502,2.83,192.47,192.44,1.52071852]
[1761294635815,2.83,192.5,192.46,1.52071852]
[1761294636100,2.83,192.48,192.46,1.52071852]
[1761294636306,2.83,192.48,192.45,1.52071852]
[1761294637409,2.83,192.48,192.44,1.52071852]
[1761294637903,2.83,192.48,192.44,63.52071852]
[1761294638707,2.83,192.48,192.44,1.52071852]
[1761294642107,4.6748,192.5,192.44,1.52071852]
[1761294643011,7.5048,192.5,192.42,62.0]
[1761294643210,7.5048,192.5,192.44,1.52071852]
[1761294643610,2.83,192.5,192.46,1.52071852]
[1761294643910,2.83,192.53,192.46,1.52071852]
[1761294644109,4.16354336,192.52,192.46,1.52071852]
[1761294644309,4.16354336,192.51,192.46,1.52071852]
[1761294644510,2.83,192.53,192.46,1.52071852]
[1761294644815,4.16252659,192.52,192.46,1.52071852]
[1761294645006,4.16252659,192.51,192.46,1.52071852]
[1761294645203,2.83,192.53,192.46,1.52071852]
[1761294645408,4.16172043,192.52,192.46,1.52071852]
[1761294645608,4.16172043,192.51,192.46,1.52071852]
[1761294645815,2.83,192.53,192.46,1.52071852]
[1761294646010,4.16172012,192.52,192.46,1.52071852]
[1761294646215,4.16172012,192.51,192.46,1.52071852]
[1761294646408,2.83,192.53,192.46,1.52071852]
[1761294646613,4.16134498,192.52,192.46,1.52071852]
[1761294646809,4.16134498,192.51,192.46,1.52071852]
[1761294647116,4.16126017,192.52,192.46,1.52071852]
[1761294647306,2.83,192.53,192.46,1.52071852]
[1761294649216,4.6741,192.53,192.46,1.52071852]
[1761294649416,2.83,192.52,192.46,1.52071852]
[1761294649615,2.83,192.5,192.43,1.52071852]
[1761294649822,2.83,192.5,192.42,62.0]
[1761294650007,2.83,192.48,192.41,1.52071852]
[1761294651111,2.83,192.48,192.42,4.6765]
[1761294651318,2.83,192.48,192.41,1.52071852]
[1761294652118,2.83,192.48,192.43,4.6762]
[1761294653423,2.83,192.51,192.43,6.19691852]
[1761294653822,2.83,192.5,192.43,6.19691852]
[1761294658229,2.83,192.5,192.43,49.39691852]
[1761294658420,2.83,192.5,192.43,47.8762]
[1761294661624,2.83,192.5,192.41,62.0]
[1761294661625,1.52071852,192.47,192.41,62.0]
[1761294661823,2.63,192.44,192.39,43.18]
[1761294662222,1.52071852,192.43,192.39,43.18]
[1761294662422,6.34771801,192.55,192.39,43.18]
[1761294662423,1.52071852,192.41,192.39,43.18]
[1761294662617,1.52071852,192.41,192.24,75.00184992]
[1761294662618,2.63,192.4,192.35,43.18]
[1761294662817,2.63,192.4,192.34,43.2]
[1761294665122,2.63,192.4,192.34,49.39911852]
[1761294666031,2.63,192.4,192.35,4.6782]
[1761294666626,2.63,192.44,192.36,1.52071852]
[1761294666826,6.77210854,192.44,192.38,1.52071852]
[1761294667033,2.63,192.44,192.38,1.52071852]
[1761294667330,2.63,192.44,192.42,1.52071852]
[1761294667831,2.63,192.44,192.4,6.19771852]
[1761294668532,2.63,192.44,192.41,4.6767]
[1761294668738,2.63,192.46,192.42,1.52071852]
[1761294669035,2.63,192.46,192.34,43.2]
[1761294669036,2.63,192.46,192.44,1.52071852]
[1761294669533,2.63,192.46,192.43,1.52071852]
[1761294672935,2.63,192.46,192.43,6.19681852]
[1761294674033,2.63,192.46,192.41,4.6767]
[1761294674228,2.63,192.46,192.41,6.19741852]
[1761294674935,2.63,192.46,192.41,4.6767]
[1761294675434,2.63,192.44,192.41,4.6767]
[1761294678131,2.63,192.44,192.33,71.3575]
[1761294678132,3.67,192.44,192.33,62.0]
[1761294678329,3.67,192.44,192.3,43.18]
[1761294678330,2.63,192.42,192.3,43.18]
[1761294678525,2.63,192.42,192.3,45.55534476]
[1761294678526,2.63,192.4,192.3,45.55534476]
[1761294678740,4.15597977,192.39,192.3,45.55534476]
[1761294678939,2.63,192.4,192.3,50.23464476]
[1761294679234,4.1577465,192.39,192.3,50.23464476]
[1761294679436,2.63,192.37,192.27,2.37534476]
[1761294679641,2.63,192.35,192.27,2.37534476]
[1761294680236,2.63,192.38,192.3,2.37534476]
[1761294680441,2.63,192.38,192.33,2.37534476]
[1761294680837,2.63,192.36,192.32,43.32]
[1761294687346,2.63,192.39,192.32,43.32]
[1761294688946,2.63,192.39,192.32,47.9988]
[1761294690850,4.14733439,192.38,192.32,47.9988]
[1761294691049,2.63,192.38,192.32,47.9988]
[1761294694356,6.90727303,192.37,192.32,47.9988]
[1761294694655,2.63,192.36,192.32,47.9988]
[1761294695254,4.6772,192.4,192.32,47.9988]
[1761294695255,4.27700427,192.39,192.34,4.6784]
[1761294695447,2.63,192.4,192.34,4.6784]
[1761294695750,4.27726734,192.39,192.36,2.37534476]
[1761294696055,2.63,192.41,192.36,2.37534476]
[1761294696251,6.90708992,192.4,192.36,2.37534476]
[1761294696453,4.27708992,192.39,192.36,2.37534476]
[1761294696655,2.63,192.4,192.36,2.37534476]
[1761294696955,4.27767087,192.39,192.36,2.37534476]
[1761294697157,2.63,192.4,192.36,2.37534476]
[1761294697349,4.27807357,192.39,192.36,2.37534476]
[1761294697548,2.63,192.4,192.36,2.37534476]
[1761294697745,4.27832959,192.39,192.36,2.37534476]
[1761294697941,2.63,192.4,192.36,2.37534476]
[1761294698143,4.27832959,192.39,192.36,2.37534476]
[1761294698348,2.63,192.4,192.36,2.37534476]
[1761294698549,2.63,192.4,192.32,43.32]
[1761294698550,6.90904185,192.39,192.33,2.37534476]
[1761294698748,2.63,192.39,192.33,2.37534476]
[1761294700053,2.63,192.39,192.34,4.6784]
[1761294700256,2.63,192.39,192.33,2.37534476]
[1761294701958,2.63,192.39,192.35,4.6781]
[1761294702155,110.86766777,192.45,192.36,45.63534476]
[1761294702454,110.86766777,192.45,192.3,64.37534476]
[1761294702455,6.91276829,192.44,192.39,2.37534476]
[1761294702653,4.28276829,192.43,192.39,45.63534476]
[1761294702857,106.04556282,192.45,192.39,45.63534476]
[1761294703059,4.28237268,192.44,192.39,45.63534476]
[1761294703261,4.82210495,192.49,192.43,2.37534476]
[1761294703559,6.91306445,192.48,192.43,2.37534476]
[1761294703753,4.28306445,192.47,192.43,2.37534476]
[1761294703957,2.63,192.45,192.42,2.37534476]
[1761294704257,7.58197761,192.48,192.42,2.37534476]
[1761294704445,2.63,192.46,192.42,2.37534476]
[1761294704651,4.28320985,192.45,192.42,2.37534476]
[1761294704853,4.95278342,192.48,192.42,7.05174476]
[1761294705053,4.28320907,192.47,192.42,7.05174476]
[1761294705256,4.28320907,192.46,192.42,7.05174476]
[1761294705559,2.63,192.49,192.42,7.05174476]
[1761294705856,9.23473259,192.48,192.42,7.05174476]
[1761294706059,4.28259669,192.47,192.42,7.05174476]
[1761294706257,4.28259669,192.46,192.42,7.05174476]
[1761294706453,4.28259669,192.45,192.42,7.05174476]
[1761294706653,4.95292449,192.48,192.42,7.05174476]
[1761294706861,4.28328276,192.47,192.42,7.05174476]
[1761294707057,4.28328276,192.46,192.42,7.05174476]
[1761294707366,2.63,192.49,192.43,4.6762]
[1761294707558,4.2823372,192.48,192.43,4.6762]
[1761294707758,4.2823372,192.47,192.43,4.6762]
[1761294707959,2.63,192.49,192.43,4.6762]
[1761294708163,4.28233776,192.48,192.43,4.6762]
[1761294708359,4.28233776,192.47,192.43,4.6762]
[1761294708665,2.63,192.49,192.43,4.6762]
[1761294708865,4.28132261,192.48,192.43,4.6762]
[1761294709065,4.28132261,192.47,192.43,4.6762]
[1761294709268,2.63,192.49,192.44,43.26]
[1761294709463,4.28040099,192.48,192.44,43.26]
[1761294709766,4.28040099,192.47,192.44,43.26]
[1761294709963,4.28040099,192.46,192.44,43.26]
[1761294710168,2.63,192.48,192.44,43.26]
[1761294710358,6.91080129,192.47,192.44,43.26]
[1761294710669,4.28080129,192.46,192.44,43.26]
[1761294710966,2.63,192.47,192.44,43.26]
[1761294711165,4.28021176,192.46,192.44,43.26]
[1761294711368,2.63,192.47,192.44,43.26]
[1761294711557,4.2796682,192.46,192.44,43.26]
[1761294711761,2.63,192.47,192.44,43.26]
[1761294711965,4.2796682,192.46,192.44,43.26]
[1761294712165,2.63,192.47,192.44,43.26]
[1761294712465,4.2796682,192.46,192.44,43.26]
[1761294712666,2.63,192.47,192.44,43.26]
[1761294712964,4.27916651,192.46,192.44,43.26]
[1761294713164,2.63,192.47,192.44,43.26]
[1761294713356,4.27916651,192.46,192.44,43.26]
[1761294713557,2.63,192.47,192.44,43.26]
[1761294713756,4.2786878,192.46,192.44,43.26]
[1761294713968,2.63,192.47,192.44,43.26]
[1761294714169,4.2786878,192.46,192.44,43.26]
[1761294714376,2.63,192.47,192.44,43.26]
[1761294714579,4.27841269,192.46,192.44,43.26]
[1761294714763,2.63,192.47,192.44,43.26]
[1761294719377,4.2453911,192.5,192.44,43.26]
[1761294719575,2.72,192.54,192.48,2.37534476]
[1761294719879,2.72,192.54,192.49,43.22]
[1761294721683,2.72,192.54,192.4,64.37534476]
[1761294721684,2.72,192.52,192.46,47.9155]
[1761294722282,2.72,192.52,192.46,43.24]
[1761294722779,4.82210495,192.55,192.46,43.24]
[1761294722780,9.61439431,192.54,192.46,45.61534476]
[1761294723082,7.66059431,192.54,192.46,45.61534476]
[1761294723379,2.72,192.54,192.46,45.61534476]
[1761294723784,2.72,192.53,192.48,4.675]
[1761294723985,2.72,192.53,192.46,45.61534476]
[1761294724180,2.72,192.52,192.46,50.29094476]
[1761294725991,7.3943,192.52,192.46,50.29094476]
[1761294726691,7.3943,192.52,192.46,7.05094476]
[1761294727288,4.6738,192.54,192.46,4.6756]
[1761294727488,2.72,192.55,192.49,2.37534476]
[1761294728482,4.93882199,192.55,192.47,7.05074476]
[1761294728690,2.72,192.54,192.47,7.05074476]
[1761294729993,2.72,192.53,192.47,4.6754]
[1761294730382,4.674,192.53,192.46,43.26]
[1761294730583,2.72,192.52,192.46,45.63534476]
[1761294731392,4.25995209,192.51,192.46,45.63534476]
[1761294731595,2.72,192.51,192.46,45.63534476]
[1761294733395,4.26127593,192.5,192.46,45.63534476]
[1761294733585,4.674,192.53,192.46,45.63534476]
[1761294733586,2.72,192.49,192.46,43.26]
[1761294734788,2.72,192.49,192.46,1.51947015]
[1761294734990,2.72,192.49,192.44,44.75947015]
[1761294735190,6.98246418,192.48,192.44,44.75947015]
[1761294735391,2.72,192.48,192.44,44.75947015]
[1761294736998,2.72,192.48,192.44,43.24]
[1761294737197,2.72,192.46,192.44,43.24]
[1761294738400,2.72,192.46,192.43,1.51947015]
[1761294738597,4.26854162,192.45,192.43,1.51947015]
[1761294738902,4.26880991,192.44,192.43,1.51947015]
[1761294741494,6.98880991,192.44,192.43,1.51947015]
[1761294742393,4.26880991,192.44,192.41,1.51947015]
[1761294742593,4.26880991,192.43,192.4,11.88]
[1761294742793,7.54210495,192.47,192.4,11.88]
[1761294743002,11.93710272,192.46,192.4,11.88]
[1761294743195,11.93863245,192.45,192.4,11.88]
[1761294743396,4.2747531,192.44,192.4,11.88]
[1761294743601,4.2747531,192.43,192.4,11.88]
[1761294743802,4.2747531,192.42,192.4,11.88]
[1761294743997,2.72,192.45,192.41,1.51947015]
[1761294744199,4.27612748,192.44,192.43,1.51947015]
[1761294746000,6.99612748,192.44,192.42,1.51947015]
[1761294746202,4.27612748,192.43,192.42,1.51947015]
[1761294749710,2.6,192.42,192.4,1.51947015]
[1761294750004,4.27612748,192.41,192.38,1.51947015]
[1761294750204,2.6,192.43,192.38,1.51947015]
[1761294750505,6.87978538,192.42,192.38,1.51947015]
[1761294750706,4.27978538,192.41,192.38,1.51947015]
[1761294750906,2.6,192.42,192.38,1.51947015]
[1761294751106,4.27962245,192.41,192.38,1.51947015]
[1761294751403,2.6,192.42,192.38,1.51947015]
[1761294751605,4.27909991,192.41,192.38,1.51947015]
[1761294751807,2.6,192.42,192.38,1.51947015]
[1761294752011,4.27909991,192.41,192.38,6.19697015]
[1761294752206,6.87940549,192.4,192.37,1.51947015]
[1761294752502,6.87940549,192.39,192.37,1.51947015]
[1761294752709,2.6,192.39,192.36,1.51947015]
[1761294756708,2.6,192.37,192.32,1.51947015]
[1761294756915,2.6,192.35,192.3,1.51947015]
[1761294757418,2.6,192.35,192.28,1.51947015]
[1761294757609,2.6,192.34,192.26,41.75947015]
[1761294758006,2.6,192.34,192.26,40.24]
[1761294758313,2.6,192.34,192.27,1.51947015]
[1761294758511,2.6,192.34,192.27,6.19957015]
[1761294759614,2.6,192.34,192.28,62.0]
[1761294759805,6.8581076,192.33,192.25,48.78536562]
[1761294760004,2.6,192.32,192.25,48.78536562]